Body name,Directorate,Service Area Categorisation,Supplier Name,Date,Net Amount,Purpose of Spend,Procurement Classification: ProClass Label
Solihull MBC,Adult Social Care,Adult Social Care,Aldi 11 772,24/04/2018,11.46,Purchase Card Statement Summary,111200 - Catering - Food & Beverages
Solihull MBC,Adult Social Care,Adult Social Care,Aldi 11 772,24/04/2018,30.64,Purchase Card Statement Summary,111200 - Catering - Food & Beverages
Solihull MBC,Adult Social Care,Adult Social Care,Aldi 11 772,24/04/2018,94.88,Purchase Card Statement Summary,111200 - Catering - Food & Beverages
Solihull MBC,Adult Social Care,Adult Social Care,Aldi 11 772,24/04/2018,97.35,Purchase Card Statement Summary,111200 - Catering - Food & Beverages
Solihull MBC,Adult Social Care,Adult Social Care,Aldi 11 772,24/04/2018,116.75,Purchase Card Statement Summary,111200 - Catering - Food & Beverages
Solihull MBC,Adult Social Care,Adult Social Care,Aldi 49 772,24/04/2018,102.96,Purchase Card Statement Summary,111200 - Catering - Food & Beverages
Solihull MBC,Children's Services - DSG Central.,Children & Education Services,Amazon EU Amazon.co.uk,24/04/2018,10.54,Purchase Card Statement Summary,161000 - Domestic Goods - Commercial
Solihull MBC,Children's Services & Skills,Children & Education Services,Amazon EU Amazon.co.uk,24/04/2018,20.94,Purchase Card Statement Summary,161000 - Domestic Goods - Commercial
Solihull MBC,Adult Social Care,Adult Social Care,Amazon EU Amazon.co.uk,17/04/2018,42.65,General Office Expenses,161000 - Domestic Goods - Commercial
Solihull MBC,Resources,Central Services to the Public,Amazon EU Amazon.co.uk,03/04/2018,48.98,IT Equipment & Software,161000 - Domestic Goods - Commercial
Solihull MBC,Children's Services - DSG Central.,Children & Education Services,Amazon EU Amazon.co.uk,24/04/2018,60.72,Purchase Card Statement Summary,161000 - Domestic Goods - Commercial
Solihull MBC,Children's Services - DSG Central.,Children & Education Services,Amazon EU Amazon.co.uk,24/04/2018,79.92,Purchase Card Statement Summary,161000 - Domestic Goods - Commercial
Solihull MBC,Children's Services - DSG Central.,Children & Education Services,Amazon EU Amazon.co.uk,24/04/2018,224.72,Purchase Card Statement Summary,161000 - Domestic Goods - Commercial
Solihull MBC,Children's Services - DSG Central.,Children & Education Services,Amazon Prime Member Fee A,24/04/2018,7.99,Purchase Card Statement Summary,161000 - Domestic Goods - Commercial
Solihull MBC,Children's Services - DSG Central.,Children & Education Services,Amazon Svcs EU-UK Amazon.,24/04/2018,2.57,Purchase Card Statement Summary,171114 - Education - Literature
Solihull MBC,Children's Services - DSG Central.,Children & Education Services,Amazon Svcs EU-UK Amazon.,24/04/2018,2.76,Purchase Card Statement Summary,171114 - Education - Literature
Solihull MBC,Children's Services - DSG Central.,Children & Education Services,Amazon Svcs EU-UK Amazon.,24/04/2018,2.78,Purchase Card Statement Summary,171114 - Education - Literature
Solihull MBC,Children's Services - DSG Central.,Children & Education Services,Amazon Svcs EU-UK Amazon.,24/04/2018,2.89,Purchase Card Statement Summary,171114 - Education - Literature
Solihull MBC,Children's Services - DSG Central.,Children & Education Services,Amazon Svcs EU-UK Amazon.,24/04/2018,2.95,Purchase Card Statement Summary,171114 - Education - Literature
Solihull MBC,Children's Services - DSG Central.,Children & Education Services,Amazon Svcs EU-UK Amazon.,24/04/2018,4.19,Purchase Card Statement Summary,171114 - Education - Literature
Solihull MBC,Managed Growth and Communities,Highways & Transport Services,Amazon Svcs EU-UK Amazon.,24/04/2018,4.48,Purchase Card Statement Summary,171114 - Education - Literature
Solihull MBC,Children's Services - DSG Central.,Children & Education Services,Amazon Svcs EU-UK Amazon.,24/04/2018,4.64,Purchase Card Statement Summary,171114 - Education - Literature
Solihull MBC,Children's Services - DSG Central.,Children & Education Services,Amazon Svcs EU-UK Amazon.,24/04/2018,5.61,Purchase Card Statement Summary,171114 - Education - Literature
Solihull MBC,Children's Services - DSG Central.,Children & Education Services,Amazon Svcs EU-UK Amazon.,24/04/2018,6.69,Purchase Card Statement Summary,171114 - Education - Literature
Solihull MBC,Children's Services - DSG Central.,Children & Education Services,Amazon Svcs EU-UK Amazon.,24/04/2018,6.99,Purchase Card Statement Summary,171114 - Education - Literature
Solihull MBC,Children's Services - DSG Central.,Children & Education Services,Amazon Svcs EU-UK Amazon.,24/04/2018,7.50,Purchase Card Statement Summary,171114 - Education - Literature
Solihull MBC,Resources,Central Services to the Public,Amazon Svcs EU-UK Amazon.,24/04/2018,8.20,Purchase Card Statement Summary,171114 - Education - Literature
Solihull MBC,Managed Growth and Communities,Highways & Transport Services,Amazon Svcs EU-UK Amazon.,24/04/2018,8.97,Purchase Card Statement Summary,171114 - Education - Literature
Solihull MBC,Resources,Central Services to the Public,Amazon Svcs EU-UK Amazon.,11/04/2018,10.82,IT Equipment & Software,171114 - Education - Literature
Solihull MBC,Adult Social Care,Adult Social Care,Amazon Svcs EU-UK Amazon.,04/04/2018,11.65,Furniture & Equipment,171114 - Education - Literature
Solihull MBC,Resources,Central Services to the Public,Amazon Svcs EU-UK Amazon.,26/04/2018,11.65,IT Equipment & Software,171114 - Education - Literature
Solihull MBC,Resources,Central Services to the Public,Amazon Svcs EU-UK Amazon.,24/04/2018,11.68,Purchase Card Statement Summary,171114 - Education - Literature
Solihull MBC,Adult Social Care,Adult Social Care,Amazon Svcs EU-UK Amazon.,21/04/2018,14.99,Clients Expenses,171114 - Education - Literature
Solihull MBC,Resources,Central Services to the Public,Amazon Svcs EU-UK Amazon.,24/04/2018,17.78,Purchase Card Statement Summary,171114 - Education - Literature
Solihull MBC,Children's Services - DSG Central.,Children & Education Services,Amazon Svcs EU-UK Amazon.,24/04/2018,23.43,Purchase Card Statement Summary,171114 - Education - Literature
Solihull MBC,Resources,Central Services to the Public,Amazon Svcs EU-UK Amazon.,24/04/2018,23.97,Purchase Card Statement Summary,171114 - Education - Literature
Solihull MBC,Adult Social Care,Adult Social Care,Amazon Svcs EU-UK Amazon.,24/04/2018,24.90,Purchase Card Statement Summary,171114 - Education - Literature
Solihull MBC,Children's Services - DSG Central.,Children & Education Services,Amazon Svcs EU-UK Amazon.,24/04/2018,26.40,Purchase Card Statement Summary,171114 - Education - Literature
Solihull MBC,Resources,Central Services to the Public,Amazon Svcs EU-UK Amazon.,24/04/2018,26.48,Purchase Card Statement Summary,171114 - Education - Literature
Solihull MBC,Children's Services - DSG Central.,Children & Education Services,Amazon Svcs EU-UK Amazon.,24/04/2018,26.59,Purchase Card Statement Summary,171114 - Education - Literature
Solihull MBC,Children's Services - DSG Central.,Children & Education Services,Amazon Svcs EU-UK Amazon.,24/04/2018,28.49,Purchase Card Statement Summary,171114 - Education - Literature
Solihull MBC,Children's Services - DSG Central.,Children & Education Services,Amazon Svcs EU-UK Amazon.,24/04/2018,37.48,Purchase Card Statement Summary,171114 - Education - Literature
Solihull MBC,Children's Services - DSG Central.,Children & Education Services,Amazon Svcs EU-UK Amazon.,24/04/2018,38.95,Purchase Card Statement Summary,171114 - Education - Literature
Solihull MBC,Children's Services - DSG Central.,Children & Education Services,Amazon Svcs EU-UK Amazon.,24/04/2018,47.89,Purchase Card Statement Summary,171114 - Education - Literature
Solihull MBC,Children's Services & Skills,Children & Education Services,Amazon Svcs EU-UK Amazon.,24/04/2018,399.95,Purchase Card Statement Summary,171114 - Education - Literature
Solihull MBC,Children's Services - DSG Central.,Children & Education Services,Amazon UK Marketplace,24/04/2018,2.95,Purchase Card Statement Summary,161000 - Domestic Goods - Commercial
Solihull MBC,Children's Services - DSG Central.,Children & Education Services,Amazon UK Marketplace,24/04/2018,4.19,Purchase Card Statement Summary,161000 - Domestic Goods - Commercial
Solihull MBC,Children's Services - DSG Central.,Children & Education Services,Amazon UK Marketplace,24/04/2018,4.49,Purchase Card Statement Summary,161000 - Domestic Goods - Commercial
Solihull MBC,Children's Services & Skills,Children & Education Services,Amazon UK Marketplace,13/04/2018,5.78,Materials,171114 - Education - Literature
Solihull MBC,Children's Services - DSG Central.,Children & Education Services,Amazon UK Marketplace,24/04/2018,6.00,Purchase Card Statement Summary,161000 - Domestic Goods - Commercial
Solihull MBC,Children's Services - DSG Central.,Children & Education Services,Amazon UK Marketplace,24/04/2018,8.88,Purchase Card Statement Summary,161000 - Domestic Goods - Commercial
Solihull MBC,Resources,Central Services to the Public,Amazon UK Marketplace,09/04/2018,9.99,IT Equipment & Software,171114 - Education - Literature
Solihull MBC,Children's Services - DSG Central.,Children & Education Services,Amazon UK Marketplace,24/04/2018,13.98,Purchase Card Statement Summary,161000 - Domestic Goods - Commercial
Solihull MBC,Resources,Central Services to the Public,Amazon UK Marketplace,24/04/2018,18.78,Purchase Card Statement Summary,161000 - Domestic Goods - Commercial
Solihull MBC,Adult Social Care,Adult Social Care,Amazon UK Marketplace,24/04/2018,19.99,Purchase Card Statement Summary,161000 - Domestic Goods - Commercial
Solihull MBC,Adult Social Care,Adult Social Care,Amazon UK Marketplace,24/04/2018,20.99,Purchase Card Statement Summary,161000 - Domestic Goods - Commercial
Solihull MBC,Resources,Other Housing Services,Amazon UK Marketplace,26/04/2018,22.04,IT Equipment & Software,171114 - Education - Literature
Solihull MBC,Managed Growth and Communities,Environmental and Regulatory Services,Amazon UK Marketplace,24/04/2018,152.80,Purchase Card Statement Summary,161000 - Domestic Goods - Commercial
Solihull MBC,Adult Social Care,Adult Social Care,Amazon UK Marketplace,24/04/2018,224.85,Purchase Card Statement Summary,161000 - Domestic Goods - Commercial
Solihull MBC,Resources,Central Services to the Public,Amazon UK Prime Amzn.co.u ,24/04/2018,7.99,Purchase Card Statement Summary,161000 - Domestic Goods - Commercial
Solihull MBC,Children's Services - DSG Central.,Children & Education Services,Amazon UK Retail,24/04/2018,10.19,Purchase Card Statement Summary,161000 - Domestic Goods - Commercial
Solihull MBC,Adult Social Care,Adult Social Care,Amazon UK Retail,28/04/2018,18.35,Furniture & Equipment,161000 - Domestic Goods - Commercial
Solihull MBC,Children's Services - DSG Central.,Children & Education Services,Amazon UK Retail,24/04/2018,20.99,Purchase Card Statement Summary,161000 - Domestic Goods - Commercial
Solihull MBC,Children's Services & Skills,Children & Education Services,Amazon UK Retail,24/04/2018,21.79,Purchase Card Statement Summary,161000 - Domestic Goods - Commercial
Solihull MBC,Public Health & Commissioning,Adult Social Care,Amazon UK Retail,24/04/2018,30.00,Purchase Card Statement Summary,161000 - Domestic Goods - Commercial
Solihull MBC,Managed Growth and Communities,Environmental and Regulatory Services,Amazon UK Retail,24/04/2018,54.99,Purchase Card Statement Summary,161000 - Domestic Goods - Commercial
Solihull MBC,Resources,Central Services to the Public,Amazon UK Retail,23/04/2018,72.75,Materials,161000 - Domestic Goods - Commercial
Solihull MBC,Resources,Central Services to the Public,Ao Retail Limited,24/04/2018,209.00,Purchase Card Statement Summary,169999 - Domestic Goods - Not Elsewhere Classified
Solihull MBC,Children's Services & Skills,Children & Education Services,Apl* Tccarslt,24/04/2018,12.00,Purchase Card Statement Summary,361300 - Public Transport - Passenger Transport
Solihull MBC,Adult Social Care,Adult Social Care,Appliancedirect Co,24/04/2018,260.90,Purchase Card Statement Summary,271430 - Information Communication Technology - Software - Commercial Off-The-Shelf
Solihull MBC,Adult Social Care,Adult Social Care,Argos Castle Vale,24/04/2018,49.99,Purchase Card Statement Summary,169999 - Domestic Goods - Not Elsewhere Classified
Solihull MBC,Adult Social Care,Adult Social Care,Argos Ltd,24/04/2018,59.99,Purchase Card Statement Summary,169999 - Domestic Goods - Not Elsewhere Classified
Solihull MBC,Children's Services & Skills,Children & Education Services,Argos Retail Group,24/04/2018,-19.48,Purchase Card Statement Summary,169999 - Domestic Goods - Not Elsewhere Classified
Solihull MBC,Children's Services & Skills,Children & Education Services,Argos Retail Group,24/04/2018,62.98,Purchase Card Statement Summary,169999 - Domestic Goods - Not Elsewhere Classified
Solihull MBC,Children's Services & Skills,Children & Education Services,Argos Retail Group,24/04/2018,119.95,Purchase Card Statement Summary,169999 - Domestic Goods - Not Elsewhere Classified
Solihull MBC,Adult Social Care,Adult Social Care,Asda Groceries Online,29/04/2018,46.46,Catering Provisions,111200 - Catering - Food & Beverages
Solihull MBC,Adult Social Care,Adult Social Care,Asda Groceries Online,16/04/2018,50.84,Catering Provisions,111200 - Catering - Food & Beverages
Solihull MBC,Adult Social Care,Adult Social Care,Asda Groceries Online,03/04/2018,55.93,Catering Provisions,111200 - Catering - Food & Beverages
Solihull MBC,Adult Social Care,Adult Social Care,Asda Groceries Online,09/04/2018,56.50,Catering Provisions,111200 - Catering - Food & Beverages
Solihull MBC,Adult Social Care,Adult Social Care,Asda Groceries Online,23/04/2018,74.02,Catering Provisions,111200 - Catering - Food & Beverages
Solihull MBC,Children's Services & Skills,Children & Education Services,Asda Home Shopping,24/04/2018,72.40,Purchase Card Statement Summary,111200 - Catering - Food & Beverages
Solihull MBC,Children's Services & Skills,Children & Education Services,Asda Home Shopping,24/04/2018,72.40,Purchase Card Statement Summary,111200 - Catering - Food & Beverages
Solihull MBC,Children's Services & Skills,Children & Education Services,Asda Stores 5881,24/04/2018,8.00,Purchase Card Statement Summary,161000 - Domestic Goods - Commercial
Solihull MBC,Adult Social Care,Adult Social Care,Asda Stores 5881,24/04/2018,11.78,Purchase Card Statement Summary,161000 - Domestic Goods - Commercial
Solihull MBC,Adult Social Care,Adult Social Care,Asda Stores 5881,24/04/2018,18.85,Purchase Card Statement Summary,161000 - Domestic Goods - Commercial
Solihull MBC,Adult Social Care,Adult Social Care,Asda Stores 5881,24/04/2018,19.55,Purchase Card Statement Summary,161000 - Domestic Goods - Commercial
Solihull MBC,Adult Social Care,Adult Social Care,Asda Stores 5881,24/04/2018,20.66,Purchase Card Statement Summary,161000 - Domestic Goods - Commercial
Solihull MBC,Children's Services & Skills,Children & Education Services,Asda Stores 5881,24/04/2018,21.18,Purchase Card Statement Summary,161000 - Domestic Goods - Commercial
Solihull MBC,Resources,Central Services to the Public,Asda Stores 5881,24/04/2018,23.91,General Office Expenses,111200 - Catering - Food & Beverages
Solihull MBC,Adult Social Care,Adult Social Care,Asda Stores 5881,24/04/2018,23.92,Purchase Card Statement Summary,161000 - Domestic Goods - Commercial
Solihull MBC,Adult Social Care,Adult Social Care,Asda Stores 5881,24/04/2018,26.18,Purchase Card Statement Summary,161000 - Domestic Goods - Commercial
Solihull MBC,Adult Social Care,Adult Social Care,Asda Stores 5881,24/04/2018,27.67,Purchase Card Statement Summary,161000 - Domestic Goods - Commercial
Solihull MBC,Adult Social Care,Adult Social Care,Asda Stores 5881,24/04/2018,28.90,Purchase Card Statement Summary,161000 - Domestic Goods - Commercial
Solihull MBC,Adult Social Care,Adult Social Care,Asda Stores 5881,24/04/2018,32.98,Purchase Card Statement Summary,161000 - Domestic Goods - Commercial
Solihull MBC,Adult Social Care,Adult Social Care,Asda Stores 5881,24/04/2018,37.42,Purchase Card Statement Summary,161000 - Domestic Goods - Commercial
Solihull MBC,Adult Social Care,Adult Social Care,Asda Stores 5881,24/04/2018,111.96,Purchase Card Statement Summary,161000 - Domestic Goods - Commercial
Solihull MBC,Children's Services & Skills,Children & Education Services,Asda Stores 5881,24/04/2018,150.00,Purchase Card Statement Summary,161000 - Domestic Goods - Commercial
Solihull MBC,Children's Services & Skills,Children & Education Services,Asda Stores 5881,24/04/2018,150.00,Purchase Card Statement Summary,161000 - Domestic Goods - Commercial
Solihull MBC,Children's Services & Skills,Children & Education Services,Asda Stores 5881,24/04/2018,150.00,Purchase Card Statement Summary,161000 - Domestic Goods - Commercial
Solihull MBC,Children's Services & Skills,Children & Education Services,Asda Stores 5881,24/04/2018,150.00,Purchase Card Statement Summary,161000 - Domestic Goods - Commercial
Solihull MBC,Adult Social Care,Adult Social Care,Asda Stores 5881,24/04/2018,194.95,Purchase Card Statement Summary,161000 - Domestic Goods - Commercial
Solihull MBC,Adult Social Care,Adult Social Care,Asda� Stores 5880,24/04/2018,18.00,Purchase Card Statement Summary,111200 - Catering - Food & Beverages
Solihull MBC,Adult Social Care,Adult Social Care,ATG Tickets,24/04/2018,23.00,Purchase Card Statement Summary,291300 - Arts & Leisure Services - Performing Arts
Solihull MBC,Adult Social Care,Adult Social Care,ATG Tickets,24/04/2018,39.00,Purchase Card Statement Summary,291300 - Arts & Leisure Services - Performing Arts
Solihull MBC,Adult Social Care,Adult Social Care,ATG Tickets,24/04/2018,77.00,Purchase Card Statement Summary,291300 - Arts & Leisure Services - Performing Arts
Solihull MBC,Adult Social Care,Adult Social Care,B & M Retail,24/04/2018,8.98,Purchase Card Statement Summary,169999 - Domestic Goods - Not Elsewhere Classified
Solihull MBC,Adult Social Care,Adult Social Care,B&M Retail,24/04/2018,9.98,Purchase Card Statement Summary,169999 - Domestic Goods - Not Elsewhere Classified
Solihull MBC,Children's Services & Skills,Children & Education Services,BCC Register Offic,24/04/2018,-6.00,Purchase Card Statement Summary,209999 - Financial Services - Not Elsewhere Classified
Solihull MBC,Children's Services & Skills,Children & Education Services,BCC Register Offic,24/04/2018,15.00,Purchase Card Statement Summary,209999 - Financial Services - Not Elsewhere Classified
Solihull MBC,Children's Services & Skills,Children & Education Services,BCC Register Offic,24/04/2018,25.00,Purchase Card Statement Summary,209999 - Financial Services - Not Elsewhere Classified
Solihull MBC,Adult Social Care,Adult Social Care,Birmingham Hippodrome,24/04/2018,16.80,Purchase Card Statement Summary,291300 - Arts & Leisure Services - Performing Arts
Solihull MBC,Adult Social Care,Adult Social Care,Birmingham Hippodrome,24/04/2018,16.80,Purchase Card Statement Summary,291300 - Arts & Leisure Services - Performing Arts
Solihull MBC,Adult Social Care,Adult Social Care,Birmingham Hippodrome,24/04/2018,24.16,Purchase Card Statement Summary,291300 - Arts & Leisure Services - Performing Arts
Solihull MBC,Adult Social Care,Adult Social Care,Birmingham Hippodrome,24/04/2018,24.16,Purchase Card Statement Summary,291300 - Arts & Leisure Services - Performing Arts
Solihull MBC,Adult Social Care,Adult Social Care,Blue Groove,24/04/2018,28.60,Purchase Card Statement Summary,261600 - Human Resources - Travel & Subsistence
Solihull MBC,Adult Social Care,Adult Social Care,Bowtique,24/04/2018,7.99,Purchase Card Statement Summary,141000 - Clothing - Children & Adults
Solihull MBC,Adult Social Care,Adult Social Care,Bridgewater Ne Bk,24/04/2018,20.96,Purchase Card Statement Summary,261600 - Human Resources - Travel & Subsistence
Solihull MBC,Adult Social Care,Adult Social Care,Cadbury World Cafe,24/04/2018,-2.00,Purchase Card Statement Summary,111000 - Catering - Banquet & Catering
Solihull MBC,Adult Social Care,Adult Social Care,Cadbury World Cafe,24/04/2018,17.50,Purchase Card Statement Summary,111000 - Catering - Banquet & Catering
Solihull MBC,Adult Social Care,Adult Social Care,Cadbury World Internet,24/04/2018,12.21,Purchase Card Statement Summary,299999 - Arts & Leisure Services - Not Elsewhere Classified
Solihull MBC,Adult Social Care,Adult Social Care,Cadbury World Internet,24/04/2018,36.63,Purchase Card Statement Summary,299999 - Arts & Leisure Services - Not Elsewhere Classified
Solihull MBC,Adult Social Care,Adult Social Care,Cavern Club,24/04/2018,29.95,Purchase Card Statement Summary,291100 - Arts & Leisure Services - Museums & Arts
Solihull MBC,Adult Social Care,Adult Social Care,Centerplate UK Ltd,24/04/2018,6.30,Purchase Card Statement Summary,111000 - Catering - Banquet & Catering
Solihull MBC,Resources,Central Services to the Public,Central Co-Op,24/04/2018,7.95,Purchase Card Statement Summary,169999 - Domestic Goods - Not Elsewhere Classified
Solihull MBC,Resources,Central Services to the Public,Central Co-Op,24/04/2018,8.65,Purchase Card Statement Summary,169999 - Domestic Goods - Not Elsewhere Classified
Solihull MBC,Resources,Central Services to the Public,Central Co-Op,24/04/2018,9.89,Purchase Card Statement Summary,169999 - Domestic Goods - Not Elsewhere Classified
Solihull MBC,Adult Social Care,Adult Social Care,Central Eng Coop,24/04/2018,2.99,Purchase Card Statement Summary,169999 - Domestic Goods - Not Elsewhere Classified
Solihull MBC,Adult Social Care,Adult Social Care,Central Eng Coop,24/04/2018,6.69,Purchase Card Statement Summary,169999 - Domestic Goods - Not Elsewhere Classified
Solihull MBC,Adult Social Care,Adult Social Care,Central Eng Coop,24/04/2018,10.20,Purchase Card Statement Summary,169999 - Domestic Goods - Not Elsewhere Classified
Solihull MBC,Adult Social Care,Adult Social Care,Central Eng Coop,24/04/2018,10.92,Purchase Card Statement Summary,169999 - Domestic Goods - Not Elsewhere Classified
Solihull MBC,Adult Social Care,Adult Social Care,Central Eng Coop,24/04/2018,11.08,Purchase Card Statement Summary,169999 - Domestic Goods - Not Elsewhere Classified
Solihull MBC,Adult Social Care,Adult Social Care,Central Eng Coop,24/04/2018,18.03,Purchase Card Statement Summary,169999 - Domestic Goods - Not Elsewhere Classified
Solihull MBC,Adult Social Care,Adult Social Care,Central Eng Coop,24/04/2018,18.39,Purchase Card Statement Summary,169999 - Domestic Goods - Not Elsewhere Classified
Solihull MBC,Adult Social Care,Adult Social Care,Central Eng Coop,24/04/2018,18.58,Purchase Card Statement Summary,169999 - Domestic Goods - Not Elsewhere Classified
Solihull MBC,Adult Social Care,Adult Social Care,Charlie's Sweet,24/04/2018,2.80,Purchase Card Statement Summary,111200 - Catering - Food & Beverages
Solihull MBC,Adult Social Care,Adult Social Care,Cool Britannia,24/04/2018,7.99,Purchase Card Statement Summary,161000 - Domestic Goods - Commercial
Solihull MBC,Adult Social Care,Cultural & Related Services,Craftis Ltd ,24/04/2018,123.59,Purchase Card Statement Summary,171117 - Education - Toys
Solihull MBC,Resources,Central Services to the Public,Croisette Beach,24/04/2018,99.20,Purchase Card Statement Summary,261000 - Human Resources - Accommodation
Solihull MBC,Resources,Central Services to the Public,Cross Country Trains,24/04/2018,20.90,Purchase Card Statement Summary,261600 - Human Resources - Travel & Subsistence
Solihull MBC,Resources,Central Services to the Public,Cross Country Trains,24/04/2018,195.00,Purchase Card Statement Summary,261600 - Human Resources - Travel & Subsistence
Solihull MBC,Adult Social Care,Adult Social Care,DFS,27/04/2018,14.56,Furniture & Equipment,192200 - Facilities & Management Services - Security
Solihull MBC,Adult Social Care,Adult Social Care,DFS,12/04/2018,147.27,Other Premise Costs,192200 - Facilities & Management Services - Security
Solihull MBC,Adult Social Care,Adult Social Care,Dunelm Ltd,24/04/2018,33.00,Purchase Card Statement Summary,211210 - Furniture & Soft Furnishings - Soft Furnishings
Solihull MBC,Children's Services & Skills,Children & Education Services,DVLA Driver Online,24/04/2018,34.00,Purchase Card Statement Summary,209999 - Financial Services - Not Elsewhere Classified
Solihull MBC,Resources,Central Services to the Public,Easington House,24/04/2018,260.00,Purchase Card Statement Summary,261000 - Human Resources - Accommodation
Solihull MBC,Managed Growth and Communities,Environmental and Regulatory Services,Electric Centre Ltd,24/04/2018,13.20,Purchase Card Statement Summary,169999 - Domestic Goods - Not Elsewhere Classified
Solihull MBC,Managed Growth and Communities,Highways & Transport Services,Electric Centre Ltd,24/04/2018,31.55,Purchase Card Statement Summary,169999 - Domestic Goods - Not Elsewhere Classified
Solihull MBC,Resources,Central Services to the Public,Fillongley Garage Ltd,24/04/2018,430.00,Purchase Card Statement Summary,381100 - Vehicle Management - Fuel
Solihull MBC,Children's Services & Skills,Children & Education Services,Flybe.com,24/04/2018,187.99,Purchase Card Statement Summary,361300 - Public Transport - Passenger Transport
Solihull MBC,Children's Services & Skills,Children & Education Services,Flybe.com,24/04/2018,191.96,Purchase Card Statement Summary,361300 - Public Transport - Passenger Transport
Solihull MBC,Adult Social Care,Adult Social Care,Geraghty's Market Ltd,24/04/2018,15.00,Purchase Card Statement Summary,111200 - Catering - Food & Beverages
Solihull MBC,Adult Social Care,Adult Social Care,Gloucester SSouth,24/04/2018,38.65,Purchase Card Statement Summary,261600 - Human Resources - Travel & Subsistence
Solihull MBC,Adult Social Care,Adult Social Care,Greggs PLC,24/04/2018,4.50,Purchase Card Statement Summary,261600 - Human Resources - Travel & Subsistence
Solihull MBC,Adult Social Care,Central Services to the Public,Greggs PLC,30/04/2018,50.00,General Office Expenses,261600 - Human Resources - Travel & Subsistence
Solihull MBC,Children's Services & Skills,Children & Education Services,GRO HM Passport Office,24/04/2018,-46.80,Purchase Card Statement Summary,209999 - Financial Services - Not Elsewhere Classified
Solihull MBC,Children's Services & Skills,Children & Education Services,GRO HM Passport Office,24/04/2018,-46.80,Purchase Card Statement Summary,209999 - Financial Services - Not Elsewhere Classified
Solihull MBC,Children's Services & Skills,Children & Education Services,GRO HM Passport Office,24/04/2018,-23.40,Purchase Card Statement Summary,209999 - Financial Services - Not Elsewhere Classified
Solihull MBC,Children's Services & Skills,Children & Education Services,GRO HM Passport Office,24/04/2018,-23.40,Purchase Card Statement Summary,209999 - Financial Services - Not Elsewhere Classified
Solihull MBC,Children's Services & Skills,Children & Education Services,GRO HM Passport Office,24/04/2018,23.40,Purchase Card Statement Summary,209999 - Financial Services - Not Elsewhere Classified
Solihull MBC,Children's Services & Skills,Children & Education Services,GRO HM Passport Office,24/04/2018,23.40,Purchase Card Statement Summary,209999 - Financial Services - Not Elsewhere Classified
Solihull MBC,Children's Services & Skills,Children & Education Services,GRO HM Passport Office,24/04/2018,23.40,Purchase Card Statement Summary,209999 - Financial Services - Not Elsewhere Classified
Solihull MBC,Children's Services & Skills,Children & Education Services,GRO HM Passport Office,24/04/2018,23.40,Purchase Card Statement Summary,209999 - Financial Services - Not Elsewhere Classified
Solihull MBC,Children's Services & Skills,Children & Education Services,GRO HM Passport Office,24/04/2018,23.40,Purchase Card Statement Summary,209999 - Financial Services - Not Elsewhere Classified
Solihull MBC,Children's Services & Skills,Children & Education Services,GRO HM Passport Office,24/04/2018,23.40,Purchase Card Statement Summary,209999 - Financial Services - Not Elsewhere Classified
Solihull MBC,Children's Services & Skills,Children & Education Services,GRO HM Passport Office,24/04/2018,29.85,Purchase Card Statement Summary,209999 - Financial Services - Not Elsewhere Classified
Solihull MBC,Children's Services & Skills,Children & Education Services,GRO HM Passport Office,24/04/2018,46.80,Purchase Card Statement Summary,209999 - Financial Services - Not Elsewhere Classified
Solihull MBC,Children's Services & Skills,Children & Education Services,GRO HM Passport Office,24/04/2018,53.25,Purchase Card Statement Summary,209999 - Financial Services - Not Elsewhere Classified
Solihull MBC,Children's Services & Skills,Children & Education Services,GRO HM Passport Office,24/04/2018,100.05,Purchase Card Statement Summary,209999 - Financial Services - Not Elsewhere Classified
Solihull MBC,Children's Services & Skills,Children & Education Services,GRO HM Passport Office,24/04/2018,153.30,Purchase Card Statement Summary,209999 - Financial Services - Not Elsewhere Classified
Solihull MBC,Children's Services & Skills,Children & Education Services,GRO HM Passport Office,24/04/2018,158.90,Purchase Card Statement Summary,209999 - Financial Services - Not Elsewhere Classified
Solihull MBC,Children's Services & Skills,Children & Education Services,GRO HM Passport Office,24/04/2018,163.80,Purchase Card Statement Summary,209999 - Financial Services - Not Elsewhere Classified
Solihull MBC,Children's Services & Skills,Children & Education Services,GRO HM Passport Office,24/04/2018,234.00,Purchase Card Statement Summary,209999 - Financial Services - Not Elsewhere Classified
Solihull MBC,Adult Social Care,Adult Social Care,Harvester Monkspat,24/04/2018,18.73,Purchase Card Statement Summary,261600 - Human Resources - Travel & Subsistence
Solihull MBC,Adult Social Care,Adult Social Care,Harvester Monkspat,24/04/2018,21.48,Purchase Card Statement Summary,261600 - Human Resources - Travel & Subsistence
Solihull MBC,Adult Social Care,Adult Social Care,Harvester Monkspat,24/04/2018,21.48,Purchase Card Statement Summary,261600 - Human Resources - Travel & Subsistence
Solihull MBC,Adult Social Care,Adult Social Care,Harvester Monkspat,24/04/2018,21.48,Purchase Card Statement Summary,261600 - Human Resources - Travel & Subsistence
Solihull MBC,Adult Social Care,Adult Social Care,Harvester Monkspat,24/04/2018,23.98,Purchase Card Statement Summary,261600 - Human Resources - Travel & Subsistence
Solihull MBC,Adult Social Care,Adult Social Care,Hillfield Farm,24/04/2018,4.49,Purchase Card Statement Summary,261600 - Human Resources - Travel & Subsistence
Solihull MBC,Adult Social Care,Adult Social Care,Hillfield Farm,24/04/2018,20.27,Purchase Card Statement Summary,261600 - Human Resources - Travel & Subsistence
Solihull MBC,Adult Social Care,Adult Social Care,Hillfield Farm,24/04/2018,23.96,Purchase Card Statement Summary,261600 - Human Resources - Travel & Subsistence
Solihull MBC,Resources,Central Services to the Public,HMCourts-Service.G,24/04/2018,282.00,Purchase Card Statement Summary,209999 - Financial Services - Not Elsewhere Classified
Solihull MBC,Resources,Central Services to the Public,HMCourts-Service.G,24/04/2018,336.00,Purchase Card Statement Summary,209999 - Financial Services - Not Elsewhere Classified
Solihull MBC,Resources,Central Services to the Public,HMCourts-Service.G,24/04/2018,885.00,Purchase Card Statement Summary,209999 - Financial Services - Not Elsewhere Classified
Solihull MBC,Adult Social Care,Adult Social Care,HMV Retail Ltd,24/04/2018,56.95,Purchase Card Statement Summary,171111 - Education - Audio Visual
Solihull MBC,Adult Social Care,Adult Social Care,Hobbycraft Group L,24/04/2018,21.60,Purchase Card Statement Summary,171110 - Education - Arts & Crafts
Solihull MBC,Resources,Central Services to the Public,Hogarths Hotel Limited,24/04/2018,220.00,Purchase Card Statement Summary,261000 - Human Resources - Accommodation
Solihull MBC,Children's Services & Skills,Children & Education Services,Holiday Inn Express Bu,24/04/2018,71.04,Purchase Card Statement Summary,261000 - Human Resources - Accommodation
Solihull MBC,Adult Social Care,Adult Social Care,Hollywood Travel,24/04/2018,136.00,Purchase Card Statement Summary,361300 - Public Transport - Passenger Transport
Solihull MBC,Adult Social Care,Adult Social Care,Home Bargains,24/04/2018,6.98,Purchase Card Statement Summary,101400 - Building Construction Materials - General Materials
Solihull MBC,Adult Social Care,Adult Social Care,Iceland,24/04/2018,91.64,Purchase Card Statement Summary,111200 - Catering - Food & Beverages
Solihull MBC,Adult Social Care,Adult Social Care,Iceland,24/04/2018,98.12,Purchase Card Statement Summary,111200 - Catering - Food & Beverages
Solihull MBC,Adult Social Care,Adult Social Care,Iceland,24/04/2018,103.02,Purchase Card Statement Summary,111200 - Catering - Food & Beverages
Solihull MBC,Managed Growth and Communities,Cultural & Related Services,J Hubbard And Son,02/05/2018,168.00,Materials,211100 - Furniture & Soft Furnishings - Domestic Furniture
Solihull MBC,Adult Social Care,Adult Social Care,Johns Rock Shop,24/04/2018,10.04,Purchase Card Statement Summary,161000 - Domestic Goods - Commercial
Solihull MBC,Adult Social Care,Adult Social Care,KFC Charlotte St,24/04/2018,11.98,Purchase Card Statement Summary,261600 - Human Resources - Travel & Subsistence
Solihull MBC,Children's Services & Skills,Children & Education Services,Kiddicare ,24/04/2018,125.93,Purchase Card Statement Summary,211210 - Furniture & Soft Furnishings - Soft Furnishings
Solihull MBC,Resources,Central Services to the Public,La Dolce Vita,24/04/2018,320.64,Purchase Card Statement Summary,151000 - Consultancy - Business
Solihull MBC,Adult Social Care,Adult Social Care,Lakeland Limited,13/04/2018,7.98,Furniture & Equipment,169999 - Domestic Goods - Not Elsewhere Classified
Solihull MBC,Resources,Central Services to the Public,Le Grand Cafe,24/04/2018,56.33,Purchase Card Statement Summary,261600 - Human Resources - Travel & Subsistence
Solihull MBC,Resources,Central Services to the Public,Ledkia,24/04/2018,94.48,Purchase Card Statement Summary,101400 - Building Construction Materials - General Materials
Solihull MBC,Adult Social Care,Adult Social Care,Lidl UK,24/04/2018,3.53,Purchase Card Statement Summary,111200 - Catering - Food & Beverages
Solihull MBC,Adult Social Care,Adult Social Care,Lidl UK,24/04/2018,99.18,Purchase Card Statement Summary,111200 - Catering - Food & Beverages
Solihull MBC,Resources,Corporate & Democratic Core,Listers Jaguar,20/04/2018,258.21,Other Transport Costs,381500 - Vehicle Management - Parts
Solihull MBC,Resources,Central Services to the Public,London Midland Tic,24/04/2018,5.20,Purchase Card Statement Summary,261600 - Human Resources - Travel & Subsistence
Solihull MBC,Children's Services & Skills,Children & Education Services,Love2Shop.co.uk,04/04/2018,50.00,Clients Expenses,201711 - Financial Services - Grants - Non-charitable
Solihull MBC,Adult Social Care,Adult Social Care,Mac Trading,24/04/2018,13.10,Purchase Card Statement Summary,111000 - Catering - Banquet & Catering
Solihull MBC,Adult Social Care,Adult Social Care,Manchester,24/04/2018,10.49,Purchase Card Statement Summary,261600 - Human Resources - Travel & Subsistence
Solihull MBC,Adult Social Care,Adult Social Care,Manchester,24/04/2018,11.49,Purchase Card Statement Summary,261600 - Human Resources - Travel & Subsistence
Solihull MBC,Resources,Corporate & Democratic Core,Marks&Spencer PLC SACA,17/04/2018,11.20,Materials,111200 - Catering - Food & Beverages
Solihull MBC,Adult Social Care,Adult Social Care,Martin McColl,24/04/2018,11.38,Purchase Card Statement Summary,111200 - Catering - Food & Beverages
Solihull MBC,Adult Social Care,Adult Social Care,McDonalds,24/04/2018,4.69,Purchase Card Statement Summary,261600 - Human Resources - Travel & Subsistence
Solihull MBC,Adult Social Care,Adult Social Care,McDonalds,24/04/2018,4.89,Purchase Card Statement Summary,261600 - Human Resources - Travel & Subsistence
Solihull MBC,Adult Social Care,Adult Social Care,McDonalds,27/04/2018,6.87,Catering Provisions,261600 - Human Resources - Travel & Subsistence
Solihull MBC,Managed Growth and Communities,Highways & Transport Services,NCS*Vue CITB HS&E Rev,24/04/2018,34.50,Purchase Card Statement Summary,171011 - Education - School Services
Solihull MBC,Resources,Children & Education Services,NEC Parking,16/04/2018,12.00,Catering Provisions,151000 - Consultancy - Business
Solihull MBC,Adult Social Care,Adult Social Care,Nisbets PLC,24/04/2018,11.99,Purchase Card Statement Summary,161000 - Domestic Goods - Commercial
Solihull MBC,Managed Growth and Communities,Environmental and Regulatory Services,Nothing But Padloc,24/04/2018,318.91,Purchase Card Statement Summary,151000 - Consultancy - Business
Solihull MBC,Managed Growth and Communities,Environmental and Regulatory Services,Olton Sst,24/04/2018,18.60,Purchase Card Statement Summary,261600 - Human Resources - Travel & Subsistence
Solihull MBC,Adult Social Care,Adult Social Care,Parkdean Resorts H,21/04/2018,75.00,Clients Expenses,291120 - Arts & Leisure Services - Organised Activities
Solihull MBC,Public Health & Commissioning,Adult Social Care,Paypal *Scchconsult,24/04/2018,65.00,Purchase Card Statement Summary,311600 - Healthcare - Services
Solihull MBC,Children's Services & Skills,Children & Education Services,Phoneclub com,24/04/2018,10.00,Purchase Card Statement Summary,271699 - Information Communications Technology - Telecommunications
Solihull MBC,Resources,Central Services to the Public,Pizza Papa Nino,24/04/2018,54.89,Purchase Card Statement Summary,261600 - Human Resources - Travel & Subsistence
Solihull MBC,Adult Social Care,Adult Social Care,Post Office Counter,24/04/2018,2.08,Purchase Card Statement Summary,301200 - Mail Services - Postage
Solihull MBC,Resources,Children & Education Services,Post Office Counter,19/04/2018,8.04,Postage & Courier Services,301200 - Mail Services - Postage
Solihull MBC,Children's Services & Skills,Children & Education Services,Post Office Counter,24/04/2018,20.00,Purchase Card Statement Summary,301200 - Mail Services - Postage
Solihull MBC,Adult Social Care,Adult Social Care,Poundland Ltd 1595,24/04/2018,9.00,Purchase Card Statement Summary,169999 - Domestic Goods - Not Elsewhere Classified
Solihull MBC,Resources,Cultural & Related Services,Poundland Ltd 1713,24/04/2018,3.00,Purchase Card Statement Summary,169999 - Domestic Goods - Not Elsewhere Classified
Solihull MBC,Public Health & Commissioning,Adult Social Care,Poundland Ltd 1713,25/04/2018,21.15,Materials,169999 - Domestic Goods - Not Elsewhere Classified
Solihull MBC,Resources,Central Services to the Public,Premier Inn44014775,16/04/2018,191.65,Car Allowances: Officers,261000 - Human Resources - Accommodation
Solihull MBC,Children's Services & Skills,Children & Education Services,Premier Inn44528885,24/04/2018,119.79,Purchase Card Statement Summary,261000 - Human Resources - Accommodation
Solihull MBC,Children's Services & Skills,Children & Education Services,Premier Inn44528885,24/04/2018,119.79,Purchase Card Statement Summary,261000 - Human Resources - Accommodation
Solihull MBC,Adult Social Care,Adult Social Care,Primark 476,24/04/2018,135.80,Purchase Card Statement Summary,141000 - Clothing - Children & Adults
Solihull MBC,Resources,Central Services to the Public,Relay 373936Px 4321538,24/04/2018,10.92,Purchase Card Statement Summary,171114 - Education - Literature
Solihull MBC,Managed Growth and Communities,Highways & Transport Services,RICS Com GBP Cybs,24/04/2018,178.20,Purchase Card Statement Summary,201711 - Financial Services - Grants - Non-charitable
Solihull MBC,Adult Social Care,Adult Social Care,Ruda,24/04/2018,6.90,Purchase Card Statement Summary,291120 - Arts & Leisure Services - Organised Activities
Solihull MBC,Adult Social Care,Adult Social Care,Ruda,24/04/2018,12.20,Purchase Card Statement Summary,291120 - Arts & Leisure Services - Organised Activities
Solihull MBC,Adult Social Care,Adult Social Care,Ruda,24/04/2018,29.40,Purchase Card Statement Summary,291120 - Arts & Leisure Services - Organised Activities
Solihull MBC,Adult Social Care,Adult Social Care,Ruda Holiday Park,24/04/2018,5.93,Purchase Card Statement Summary,291120 - Arts & Leisure Services - Organised Activities
Solihull MBC,Adult Social Care,Adult Social Care,Ruda Holiday Park,24/04/2018,11.66,Purchase Card Statement Summary,291120 - Arts & Leisure Services - Organised Activities
Solihull MBC,Adult Social Care,Adult Social Care,Sainsbury'S S/Mkt,06/04/2018,6.35,Catering Provisions,111200 - Catering - Food & Beverages
Solihull MBC,Adult Social Care,Adult Social Care,Sainsburys S/Mkts,22/04/2018,12.15,Cleaning,111200 - Catering - Food & Beverages
Solihull MBC,Resources,Cultural & Related Services,Sainsburys Smkt,24/04/2018,14.00,Purchase Card Statement Summary,111200 - Catering - Food & Beverages
Solihull MBC,Adult Social Care,Adult Social Care,Sainsbury's Smkt,24/04/2018,8.50,Purchase Card Statement Summary,111200 - Catering - Food & Beverages
Solihull MBC,Adult Social Care,Adult Social Care,Sainsbury's Smkt,24/04/2018,31.10,Purchase Card Statement Summary,111200 - Catering - Food & Beverages
Solihull MBC,Adult Social Care,Adult Social Care,Sainsbury's Smkt,24/04/2018,116.50,Purchase Card Statement Summary,111200 - Catering - Food & Beverages
Solihull MBC,Adult Social Care,Adult Social Care,Sainsburys Smkts,24/04/2018,4.45,Purchase Card Statement Summary,111200 - Catering - Food & Beverages
Solihull MBC,Adult Social Care,Adult Social Care,Sainsburys Smkts,24/04/2018,9.10,Purchase Card Statement Summary,111200 - Catering - Food & Beverages
Solihull MBC,Adult Social Care,Adult Social Care,Sainsburys Smkts,24/04/2018,9.90,Purchase Card Statement Summary,111200 - Catering - Food & Beverages
Solihull MBC,Adult Social Care,Adult Social Care,Sainsburys Smkts,24/04/2018,16.52,Purchase Card Statement Summary,111200 - Catering - Food & Beverages
Solihull MBC,Adult Social Care,Adult Social Care,Sainsburys Smkts,24/04/2018,21.85,Purchase Card Statement Summary,111200 - Catering - Food & Beverages
Solihull MBC,Adult Social Care,Adult Social Care,Sainsburys Smkts,24/04/2018,122.15,Purchase Card Statement Summary,111200 - Catering - Food & Beverages
Solihull MBC,Adult Social Care,Adult Social Care,Sandford,24/04/2018,5.75,Purchase Card Statement Summary,291120 - Arts & Leisure Services - Organised Activities
Solihull MBC,Adult Social Care,Adult Social Care,Sandford,24/04/2018,8.90,Purchase Card Statement Summary,291120 - Arts & Leisure Services - Organised Activities
Solihull MBC,Adult Social Care,Adult Social Care,Sandford,24/04/2018,9.95,Purchase Card Statement Summary,291120 - Arts & Leisure Services - Organised Activities
Solihull MBC,Adult Social Care,Adult Social Care,Sandford Holiday P,24/04/2018,6.33,Purchase Card Statement Summary,111200 - Catering - Food & Beverages
Solihull MBC,Adult Social Care,Adult Social Care,Saracens Head,24/04/2018,12.40,Purchase Card Statement Summary,261600 - Human Resources - Travel & Subsistence
Solihull MBC,Adult Social Care,Adult Social Care,Sea Life,24/04/2018,16.50,Purchase Card Statement Summary,291100 - Arts & Leisure Services - Museums & Arts
Solihull MBC,Adult Social Care,Adult Social Care,Sea Life,24/04/2018,16.50,Purchase Card Statement Summary,291100 - Arts & Leisure Services - Museums & Arts
Solihull MBC,Adult Social Care,Adult Social Care,Sealife Centre (Blackp,24/04/2018,20.00,Purchase Card Statement Summary,291100 - Arts & Leisure Services - Museums & Arts
Solihull MBC,Adult Social Care,Adult Social Care,Severn Valley Rail,24/04/2018,79.75,Purchase Card Statement Summary,261600 - Human Resources - Travel & Subsistence
Solihull MBC,Adult Social Care,Adult Social Care,Severn Valley Rail,24/04/2018,89.50,Purchase Card Statement Summary,261600 - Human Resources - Travel & Subsistence
Solihull MBC,Resources,Central Services to the Public,Shredall,24/04/2018,272.40,Purchase Card Statement Summary,151000 - Consultancy - Business
Solihull MBC,Adult Social Care,Adult Social Care,SMBC� Revenues - C,24/04/2018,22.00,Purchase Card Statement Summary,151900 - Consultancy - Management
Solihull MBC,Children's Services & Skills,Children & Education Services,SMBC� Revenues - C,24/04/2018,25.65,Purchase Card Statement Summary,151900 - Consultancy - Management
Solihull MBC,Adult Social Care,Adult Social Care,Solihull MBC,24/04/2018,14.00,Purchase Card Statement Summary,151900 - Consultancy - Management
Solihull MBC,Adult Social Care,Adult Social Care,Solihull MBC,24/04/2018,14.00,Purchase Card Statement Summary,151900 - Consultancy - Management
Solihull MBC,Adult Social Care,Adult Social Care,Solihull MBC,24/04/2018,14.00,Purchase Card Statement Summary,151900 - Consultancy - Management
Solihull MBC,Adult Social Care,Adult Social Care,Solihull MBC,24/04/2018,14.00,Purchase Card Statement Summary,151900 - Consultancy - Management
Solihull MBC,Adult Social Care,Adult Social Care,Solihull MBC,24/04/2018,32.00,Purchase Card Statement Summary,151900 - Consultancy - Management
Solihull MBC,Managed Growth and Communities,Highways & Transport Services,Solihull Station T/O,18/04/2018,4.40,Car Allowances: Officers,261600 - Human Resources - Travel & Subsistence
Solihull MBC,Managed Growth and Communities,Planning & Development Services,Solihull Station T/O,02/05/2018,4.40,Car Allowances: Officers,261600 - Human Resources - Travel & Subsistence
Solihull MBC,Managed Growth and Communities,Planning & Development Services,Solihull Station T/O,11/04/2018,55.00,Car Allowances: Officers,261600 - Human Resources - Travel & Subsistence
Solihull MBC,Managed Growth and Communities,Environmental and Regulatory Services,Solihull Station To,24/04/2018,4.40,Purchase Card Statement Summary,261600 - Human Resources - Travel & Subsistence
Solihull MBC,Adult Social Care,Adult Social Care,Squires Fish Restauran,24/04/2018,22.10,Purchase Card Statement Summary,261600 - Human Resources - Travel & Subsistence
Solihull MBC,Adult Social Care,Adult Social Care,Sykes Cottages ,23/04/2018,326.00,Clients Expenses,161000 - Domestic Goods - Commercial
Solihull MBC,Children's Services & Skills,Children & Education Services,Tesco - Seller_Ist_1_2401,24/04/2018,284.99,Purchase Card Statement Summary,161000 - Domestic Goods - Commercial
Solihull MBC,Children's Services & Skills,Children & Education Services,Tesco Direct,24/04/2018,199.00,Purchase Card Statement Summary,161000 - Domestic Goods - Commercial
Solihull MBC,Adult Social Care,Adult Social Care,Tesco Store 2785,24/04/2018,13.03,Purchase Card Statement Summary,111200 - Catering - Food & Beverages
Solihull MBC,Adult Social Care,Adult Social Care,Tesco Store 3188,24/04/2018,10.65,Purchase Card Statement Summary,111200 - Catering - Food & Beverages
Solihull MBC,Adult Social Care,Adult Social Care,Tesco Store 3188,24/04/2018,15.46,Purchase Card Statement Summary,111200 - Catering - Food & Beverages
Solihull MBC,Adult Social Care,Adult Social Care,Tesco Store 3188,24/04/2018,16.00,Purchase Card Statement Summary,111200 - Catering - Food & Beverages
Solihull MBC,Adult Social Care,Adult Social Care,Tesco Store 3188,09/04/2018,18.10,Cleaning,111200 - Catering - Food & Beverages
Solihull MBC,Adult Social Care,Adult Social Care,Tesco Store 3188,24/04/2018,18.30,Purchase Card Statement Summary,111200 - Catering - Food & Beverages
Solihull MBC,Adult Social Care,Adult Social Care,Tesco Store 3188,24/04/2018,18.50,Purchase Card Statement Summary,111200 - Catering - Food & Beverages
Solihull MBC,Adult Social Care,Adult Social Care,Tesco Store 3188,24/04/2018,18.50,Purchase Card Statement Summary,111200 - Catering - Food & Beverages
Solihull MBC,Adult Social Care,Adult Social Care,Tesco Store 3188,24/04/2018,19.07,Purchase Card Statement Summary,111200 - Catering - Food & Beverages
Solihull MBC,Adult Social Care,Adult Social Care,Tesco Store 3188,24/04/2018,19.25,Purchase Card Statement Summary,111200 - Catering - Food & Beverages
Solihull MBC,Adult Social Care,Adult Social Care,Tesco Store 3188,24/04/2018,19.30,Purchase Card Statement Summary,111200 - Catering - Food & Beverages
Solihull MBC,Adult Social Care,Adult Social Care,Tesco Store 3188,24/04/2018,20.40,Purchase Card Statement Summary,111200 - Catering - Food & Beverages
Solihull MBC,Adult Social Care,Adult Social Care,Tesco Store 3188,24/04/2018,21.02,Purchase Card Statement Summary,111200 - Catering - Food & Beverages
Solihull MBC,Adult Social Care,Adult Social Care,Tesco Store 3188,24/04/2018,28.75,Purchase Card Statement Summary,111200 - Catering - Food & Beverages
Solihull MBC,Adult Social Care,Adult Social Care,Tesco Store 3188,24/04/2018,28.90,Purchase Card Statement Summary,111200 - Catering - Food & Beverages
Solihull MBC,Adult Social Care,Adult Social Care,Tesco Store 3188,24/04/2018,31.19,Purchase Card Statement Summary,111200 - Catering - Food & Beverages
Solihull MBC,Adult Social Care,Adult Social Care,Tesco Store 3188,24/04/2018,33.00,Purchase Card Statement Summary,111200 - Catering - Food & Beverages
Solihull MBC,Adult Social Care,Adult Social Care,Tesco Store 3188,24/04/2018,34.10,Purchase Card Statement Summary,111200 - Catering - Food & Beverages
Solihull MBC,Adult Social Care,Adult Social Care,Tesco Store 3188,24/04/2018,36.00,Purchase Card Statement Summary,111200 - Catering - Food & Beverages
Solihull MBC,Adult Social Care,Adult Social Care,Tesco Store 3188,24/04/2018,38.50,Purchase Card Statement Summary,111200 - Catering - Food & Beverages
Solihull MBC,Adult Social Care,Adult Social Care,Tesco Store 3188,24/04/2018,40.30,Purchase Card Statement Summary,111200 - Catering - Food & Beverages
Solihull MBC,Adult Social Care,Adult Social Care,Tesco Store 3188,24/04/2018,42.62,Purchase Card Statement Summary,111200 - Catering - Food & Beverages
Solihull MBC,Adult Social Care,Adult Social Care,Tesco Store 3188,24/04/2018,48.25,Purchase Card Statement Summary,111200 - Catering - Food & Beverages
Solihull MBC,Adult Social Care,Adult Social Care,Tesco Store 3188,24/04/2018,49.08,Purchase Card Statement Summary,111200 - Catering - Food & Beverages
Solihull MBC,Adult Social Care,Adult Social Care,Tesco Store 3188,24/04/2018,59.80,Purchase Card Statement Summary,111200 - Catering - Food & Beverages
Solihull MBC,Adult Social Care,Adult Social Care,Tesco Store 3188,24/04/2018,66.91,Purchase Card Statement Summary,111200 - Catering - Food & Beverages
Solihull MBC,Adult Social Care,Adult Social Care,Tesco Store 3188,24/04/2018,67.49,Purchase Card Statement Summary,111200 - Catering - Food & Beverages
Solihull MBC,Adult Social Care,Adult Social Care,Tesco Store 3188,20/04/2018,81.49,Catering Provisions,111200 - Catering - Food & Beverages
Solihull MBC,Adult Social Care,Adult Social Care,Tesco Store 3188,16/04/2018,83.44,Catering Provisions,111200 - Catering - Food & Beverages
Solihull MBC,Adult Social Care,Adult Social Care,Tesco Store 3188,09/04/2018,86.86,Catering Provisions,111200 - Catering - Food & Beverages
Solihull MBC,Adult Social Care,Adult Social Care,Tesco Store 3188,24/04/2018,87.89,Purchase Card Statement Summary,111200 - Catering - Food & Beverages
Solihull MBC,Adult Social Care,Adult Social Care,Tesco Store 3188,24/04/2018,89.55,Purchase Card Statement Summary,111200 - Catering - Food & Beverages
Solihull MBC,Adult Social Care,Adult Social Care,Tesco Store 3188,24/04/2018,89.89,Purchase Card Statement Summary,111200 - Catering - Food & Beverages
Solihull MBC,Adult Social Care,Adult Social Care,Tesco Store 3188,24/04/2018,97.46,Purchase Card Statement Summary,111200 - Catering - Food & Beverages
Solihull MBC,Adult Social Care,Adult Social Care,Tesco Store 3188,24/04/2018,98.93,Purchase Card Statement Summary,111200 - Catering - Food & Beverages
Solihull MBC,Adult Social Care,Adult Social Care,Tesco Store 3188,24/04/2018,103.24,Purchase Card Statement Summary,111200 - Catering - Food & Beverages
Solihull MBC,Adult Social Care,Adult Social Care,Tesco Store 3188,24/04/2018,103.34,Purchase Card Statement Summary,111200 - Catering - Food & Beverages
Solihull MBC,Adult Social Care,Adult Social Care,Tesco Store 3188,24/04/2018,106.82,Purchase Card Statement Summary,111200 - Catering - Food & Beverages
Solihull MBC,Adult Social Care,Adult Social Care,Tesco Store 3188,24/04/2018,116.30,Purchase Card Statement Summary,111200 - Catering - Food & Beverages
Solihull MBC,Adult Social Care,Adult Social Care,Tesco Store 3188,24/04/2018,132.80,Purchase Card Statement Summary,111200 - Catering - Food & Beverages
Solihull MBC,Adult Social Care,Adult Social Care,Tesco Store 3188,24/04/2018,136.05,Purchase Card Statement Summary,111200 - Catering - Food & Beverages
Solihull MBC,Adult Social Care,Adult Social Care,Tesco Store 3188,24/04/2018,169.02,Purchase Card Statement Summary,111200 - Catering - Food & Beverages
Solihull MBC,Adult Social Care,Adult Social Care,Tesco Store 3188,24/04/2018,181.81,Purchase Card Statement Summary,111200 - Catering - Food & Beverages
Solihull MBC,Adult Social Care,Adult Social Care,Tesco Stores 2785,24/04/2018,25.51,Purchase Card Statement Summary,111200 - Catering - Food & Beverages
Solihull MBC,Adult Social Care,Adult Social Care,Tesco Stores 5850,24/04/2018,10.74,Purchase Card Statement Summary,111200 - Catering - Food & Beverages
Solihull MBC,Resources,Children & Education Services,Tesco-Stores 3188,26/04/2018,1.70,Catering Provisions,111200 - Catering - Food & Beverages
Solihull MBC,Resources,Children & Education Services,Tesco-Stores 3188,04/04/2018,18.05,Catering Provisions,111200 - Catering - Food & Beverages
Solihull MBC,Adult Social Care,Adult Social Care,Tesco-Stores 3188,25/04/2018,32.00,Furniture & Equipment,111200 - Catering - Food & Beverages
Solihull MBC,Adult Social Care,Adult Social Care,Tesco-Stores 3188,24/04/2018,34.80,Purchase Card Statement Summary,111200 - Catering - Food & Beverages
Solihull MBC,Resources,Central Services to the Public,The Chiltern Rlywy,24/04/2018,5.80,Purchase Card Statement Summary,261600 - Human Resources - Travel & Subsistence
Solihull MBC,Adult Social Care,Adult Social Care,The Clay Pipe Inn,24/04/2018,11.09,Purchase Card Statement Summary,261600 - Human Resources - Travel & Subsistence
Solihull MBC,Adult Social Care,Adult Social Care,The Clay Pipe Inn,24/04/2018,11.49,Purchase Card Statement Summary,261600 - Human Resources - Travel & Subsistence
Solihull MBC,Resources,Cultural & Related Services,The Costume Department,24/04/2018,30.00,Purchase Card Statement Summary,149999 - Clothing - Not Elsewhere Classified
Solihull MBC,Adult Social Care,Adult Social Care,The Kingslodge,24/04/2018,28.00,Purchase Card Statement Summary,261600 - Human Resources - Travel & Subsistence
Solihull MBC,Adult Social Care,Cultural & Related Services,The Lamp Company Ltd,24/04/2018,23.40,Purchase Card Statement Summary,101100 - Building Construction Materials - Electrical
Solihull MBC,Children's Services & Skills,Children & Education Services,The Post Office,24/04/2018,15.00,Purchase Card Statement Summary,301200 - Mail Services - Postage
Solihull MBC,Children's Services & Skills,Children & Education Services,The Post Office,24/04/2018,64.32,Purchase Card Statement Summary,301200 - Mail Services - Postage
Solihull MBC,Adult Social Care,Adult Social Care,The Range,24/04/2018,3.99,Purchase Card Statement Summary,169999 - Domestic Goods - Not Elsewhere Classified
Solihull MBC,Adult Social Care,Adult Social Care,The Range,24/04/2018,4.99,Purchase Card Statement Summary,169999 - Domestic Goods - Not Elsewhere Classified
Solihull MBC,Children's Services & Skills,Children & Education Services,The Upper Crust,04/04/2018,62.64,General Office Expenses,261600 - Human Resources - Travel & Subsistence
Solihull MBC,Adult Social Care,Adult Social Care,Thompson & Morgan,24/04/2018,74.94,Purchase Card Statement Summary,249999 - Horticultural - Not Elsewhere Classified
Solihull MBC,Resources,Central Services to the Public,Timpson Ltd,27/04/2018,7.00,General Office Expenses,149999 - Clothing - Not Elsewhere Classified
Solihull MBC,Managed Growth and Communities,Highways & Transport Services,Timpson Ltd,24/04/2018,9.00,Purchase Card Statement Summary,149999 - Clothing - Not Elsewhere Classified
Solihull MBC,Resources,Central Services to the Public,Timpson Ltd,16/04/2018,14.00,General Office Expenses,149999 - Clothing - Not Elsewhere Classified
Solihull MBC,Resources,Central Services to the Public,Timpson Ltd,11/04/2018,24.00,General Office Expenses,149999 - Clothing - Not Elsewhere Classified
Solihull MBC,Children's Services & Skills,Children & Education Services,Titan Storage Solihull,24/04/2018,121.00,Purchase Card Statement Summary,209999 - Financial Services - Not Elsewhere Classified
Solihull MBC,Adult Social Care,Adult Social Care,Toby Carvery,24/04/2018,16.68,Purchase Card Statement Summary,261600 - Human Resources - Travel & Subsistence
Solihull MBC,Adult Social Care,Adult Social Care,Toby Carvery,24/04/2018,18.56,Purchase Card Statement Summary,261600 - Human Resources - Travel & Subsistence
Solihull MBC,Adult Social Care,Adult Social Care,Toby Carvery,24/04/2018,26.87,Purchase Card Statement Summary,261600 - Human Resources - Travel & Subsistence
Solihull MBC,Children's Services & Skills,Children & Education Services,Trainline,24/04/2018,31.75,Purchase Card Statement Summary,261600 - Human Resources - Travel & Subsistence
Solihull MBC,Children's Services & Skills,Children & Education Services,Trainline,24/04/2018,132.20,Purchase Card Statement Summary,261600 - Human Resources - Travel & Subsistence
Solihull MBC,Children's Services & Skills,Children & Education Services,Trainline,24/04/2018,141.80,Purchase Card Statement Summary,261600 - Human Resources - Travel & Subsistence
Solihull MBC,Children's Services & Skills,Children & Education Services,Trainline,24/04/2018,148.10,Purchase Card Statement Summary,261600 - Human Resources - Travel & Subsistence
Solihull MBC,Children's Services & Skills,Children & Education Services,Trainline,24/04/2018,219.10,Purchase Card Statement Summary,261600 - Human Resources - Travel & Subsistence
Solihull MBC,Resources,Central Services to the Public,Trainline,25/04/2018,243.00,General Office Expenses,261600 - Human Resources - Travel & Subsistence
Solihull MBC,Resources,Central Services to the Public,Trainline,12/04/2018,345.00,General Office Expenses,261600 - Human Resources - Travel & Subsistence
Solihull MBC,Children's Services & Skills,Children & Education Services,Tvlicensing.co.uk,24/04/2018,147.00,Purchase Card Statement Summary,151900 - Consultancy - Management
Solihull MBC,Children's Services & Skills,Children & Education Services,Tvlicensing.co.uk,24/04/2018,147.00,Purchase Card Statement Summary,151900 - Consultancy - Management
Solihull MBC,Children's Services & Skills,Children & Education Services,Tvlicensing.co.uk,24/04/2018,147.00,Purchase Card Statement Summary,151900 - Consultancy - Management
Solihull MBC,Managed Growth and Communities,Highways & Transport Services,Tvlicensing.co.uk,24/04/2018,147.00,Purchase Card Statement Summary,151900 - Consultancy - Management
Solihull MBC,Resources,Central Services to the Public,Tvlicensing.co.uk,17/04/2018,150.50,General Office Expenses,151900 - Consultancy - Management
Solihull MBC,Children's Services - DSG Central.,Children & Education Services,Twinkl Ltd,17/04/2018,48.70,Grant & Subscription (SCITT),201711 - Financial Services - Grants - Non-charitable
Solihull MBC,Children's Services - DSG Central.,Children & Education Services,UCL Business PLC,24/04/2018,120.00,Purchase Card Statement Summary,271430 - Information Communication Technology - Software - Commercial Off-The-Shelf
Solihull MBC,Public Health & Commissioning,Adult Social Care,Venngage.com,04/04/2018,128.35,IT Equipment & Software,271600 - Information Communication Technology - Software - Customised & Bespoke
Solihull MBC,Public Health & Commissioning,Adult Social Care,Venngage.com,25/04/2018,193.74,IT Equipment & Software,271600 - Information Communication Technology - Software - Customised & Bespoke
Solihull MBC,Managed Growth and Communities,Environmental and Regulatory Services,Victoria Square Hotel,24/04/2018,-25.00,Purchase Card Statement Summary,261000 - Human Resources - Accommodation
Solihull MBC,Managed Growth and Communities,Environmental and Regulatory Services,Victoria Square Hotel,24/04/2018,570.00,Purchase Card Statement Summary,261000 - Human Resources - Accommodation
Solihull MBC,Adult Social Care,Adult Social Care,W M Morrisons,24/04/2018,3.50,Purchase Card Statement Summary,111200 - Catering - Food & Beverages
Solihull MBC,Resources,Central Services to the Public,W M Morrisons,24/04/2018,21.60,Purchase Card Statement Summary,111200 - Catering - Food & Beverages
Solihull MBC,Adult Social Care,Adult Social Care,W M Morrisons,24/04/2018,33.70,Purchase Card Statement Summary,111200 - Catering - Food & Beverages
Solihull MBC,Adult Social Care,Adult Social Care,W M Morrisons,24/04/2018,60.79,Purchase Card Statement Summary,111200 - Catering - Food & Beverages
Solihull MBC,Adult Social Care,Adult Social Care,W M Morrisons,24/04/2018,98.00,Purchase Card Statement Summary,111200 - Catering - Food & Beverages
Solihull MBC,Adult Social Care,Adult Social Care,W M Morrisons,24/04/2018,99.39,Purchase Card Statement Summary,111200 - Catering - Food & Beverages
Solihull MBC,Adult Social Care,Adult Social Care,W M Morrisons,24/04/2018,108.13,Purchase Card Statement Summary,111200 - Catering - Food & Beverages
Solihull MBC,Adult Social Care,Adult Social Care,Welcome B Starbucks,24/04/2018,2.35,Purchase Card Statement Summary,111200 - Catering - Food & Beverages
Solihull MBC,Adult Social Care,Adult Social Care,Welcome B Starbucks,24/04/2018,20.10,Purchase Card Statement Summary,111200 - Catering - Food & Beverages
Solihull MBC,Adult Social Care,Adult Social Care,West Midland Safai Par,24/04/2018,17.99,Purchase Card Statement Summary,299999 - Arts & Leisure Services - Not Elsewhere Classified
Solihull MBC,Adult Social Care,Adult Social Care,West Midland Safai Par,24/04/2018,24.00,Purchase Card Statement Summary,299999 - Arts & Leisure Services - Not Elsewhere Classified
Solihull MBC,Adult Social Care,Adult Social Care,West Midland Safai Par,24/04/2018,25.00,Purchase Card Statement Summary,299999 - Arts & Leisure Services - Not Elsewhere Classified
Solihull MBC,Adult Social Care,Adult Social Care,West Midland Safai Par,24/04/2018,48.00,Purchase Card Statement Summary,299999 - Arts & Leisure Services - Not Elsewhere Classified
Solihull MBC,Adult Social Care,Adult Social Care,West Midland Safai Par,24/04/2018,48.00,Purchase Card Statement Summary,299999 - Arts & Leisure Services - Not Elsewhere Classified
Solihull MBC,Adult Social Care,Adult Social Care,Weston Beach Cafe,24/04/2018,18.44,Purchase Card Statement Summary,261600 - Human Resources - Travel & Subsistence
Solihull MBC,Adult Social Care,Adult Social Care,Weston Beach Cafe,24/04/2018,32.06,Purchase Card Statement Summary,261600 - Human Resources - Travel & Subsistence
Solihull MBC,Adult Social Care,Adult Social Care,Wilko Retail Limit,24/04/2018,3.00,Purchase Card Statement Summary,169999 - Domestic Goods - Not Elsewhere Classified
Solihull MBC,Resources,Children & Education Services,Wm Morrisons,24/04/2018,3.46,Purchase Card Statement Summary,111200 - Catering - Food & Beverages
Solihull MBC,Resources,Children & Education Services,Wm Morrisons,24/04/2018,17.97,Purchase Card Statement Summary,111200 - Catering - Food & Beverages
Solihull MBC,Children's Services & Skills,Children & Education Services,WP-The British Ass,24/04/2018,5.00,Purchase Card Statement Summary,201710 - Financial Services - Grants - Charitable
Solihull MBC,Children's Services & Skills,Children & Education Services,WP-The British Ass,24/04/2018,175.00,Purchase Card Statement Summary,201710 - Financial Services - Grants - Charitable
Solihull MBC,Children's Services & Skills,Children & Education Services,www.argos.co.uk,24/04/2018,83.94,Purchase Card Statement Summary,169999 - Domestic Goods - Not Elsewhere Classified
Solihull MBC,Children's Services & Skills,Children & Education Services,www.argos.co.uk,24/04/2018,110.00,Purchase Card Statement Summary,169999 - Domestic Goods - Not Elsewhere Classified
Solihull MBC,Children's Services & Skills,Children & Education Services,www.argos.co.uk,24/04/2018,172.93,Purchase Card Statement Summary,169999 - Domestic Goods - Not Elsewhere Classified
Solihull MBC,Children's Services & Skills,Children & Education Services,www.argos.co.uk,24/04/2018,172.94,Purchase Card Statement Summary,169999 - Domestic Goods - Not Elsewhere Classified
Solihull MBC,Children's Services & Skills,Children & Education Services,www.argos.co.uk,24/04/2018,348.94,Purchase Card Statement Summary,169999 - Domestic Goods - Not Elsewhere Classified
Solihull MBC,Children's Services & Skills,Children & Education Services,www.Beds.co.uk,24/04/2018,269.10,Purchase Card Statement Summary,211100 - Furniture & Soft Furnishings - Domestic Furniture
Solihull MBC,Children's Services & Skills,Children & Education Services,www.Bromford.co.uk,24/04/2018,100.00,Purchase Card Statement Summary,209999 - Financial Services - Not Elsewhere Classified
Solihull MBC,Managed Growth and Communities,Highways & Transport Services,www.Dhl International,24/04/2018,46.17,Purchase Card Statement Summary,301100 - Mail Services - Freight
Solihull MBC,Resources,Central Services to the Public,www.gov.uk,24/04/2018,10.00,Purchase Card Statement Summary,209999 - Financial Services - Not Elsewhere Classified
Solihull MBC,Children's Services & Skills,Children & Education Services,www.Hxpayments.com,24/04/2018,-87.99,Purchase Card Statement Summary,261600 - Human Resources - Travel & Subsistence
Solihull MBC,Children's Services & Skills,Children & Education Services,www.Hxpayments.com,24/04/2018,87.99,Purchase Card Statement Summary,261600 - Human Resources - Travel & Subsistence
Solihull MBC,Resources,Central Services to the Public,www.ico.gov.uk,24/04/2018,35.00,Purchase Card Statement Summary,209999 - Financial Services - Not Elsewhere Classified
Solihull MBC,Resources,Central Services to the Public,www.ico.gov.uk,24/04/2018,500.00,Purchase Card Statement Summary,209999 - Financial Services - Not Elsewhere Classified
Solihull MBC,Children's Services & Skills,Children & Education Services,www.Ikea.com,24/04/2018,421.00,Purchase Card Statement Summary,211100 - Furniture & Soft Furnishings - Domestic Furniture
Solihull MBC,Adult Social Care,Adult Social Care,www.Ikea.com,24/04/2018,442.50,Purchase Card Statement Summary,211100 - Furniture & Soft Furnishings - Domestic Furniture
Solihull MBC,Adult Social Care,Adult Social Care,www.Ikea.com,24/04/2018,867.50,Purchase Card Statement Summary,211100 - Furniture & Soft Furnishings - Domestic Furniture
Solihull MBC,Adult Social Care,Adult Social Care,www.Posturite.co.uk,30/04/2018,107.99,General Office Expenses,211000 - Furniture & Soft Furnishings - Commercial Furniture
Solihull MBC,Children's Services & Skills,Children & Education Services,www.Redkangaroo.co.uk,24/04/2018,35.85,Purchase Card Statement Summary,291100 - Arts & Leisure Services - Museums & Arts
Solihull MBC,Resources,Central Services to the Public,www.Streetfurnituredir,24/04/2018,108.00,Purchase Card Statement Summary,111100 - Catering - Equipment & Utensils
Solihull MBC,Resources,Cultural & Related Services,www.Treasureislandswee,24/04/2018,329.25,Purchase Card Statement Summary,111200 - Catering - Food & Beverages
Solihull MBC,Resources,Central Services to the Public,www.Ukpos.com,19/04/2018,97.86,General Office Expenses,341100 - Stationery - Sundries
Solihull MBC,Resources,Central Services to the Public,www.Ukpos.com,25/04/2018,331.66,General Office Expenses,341100 - Stationery - Sundries
